bitfinex-derivatives/quotes_SOLF0:USTF0_20250509
["timestamp","ask_amount","ask_price","bid_price","bid_amount"]
[1746778611078,109.6289,166.38,166.34,518.72]
[1746778611285,109.6289,166.37,166.34,518.72]
[1746778611785,109.6289,166.37,166.36,6.0101]
[1746778611976,1.9037,166.42,166.34,518.72]
[1746778612182,109.6289,166.38,166.37,6.0097]
[1746778612376,109.6289,166.4,166.34,518.72]
[1746778612678,43.14,166.48,166.35,12.0209]
[1746778612877,109.6289,166.43,166.36,42.8]
[1746778613079,109.6289,166.47,166.36,42.8]
[1746778613281,109.6289,166.47,166.37,2.0254]
[1746778613483,1.9186,166.5,166.39,12.018]
[1746778613679,109.6289,166.49,166.4,14.26052914]
[1746778613880,109.6289,166.51,166.5,6.0051]
[1746778614080,27.9353,166.55,166.47,43.14]
[1746778614281,3.8649,166.59,166.48,45.1904]
[1746778614480,81.6936,166.55,166.54,6.0036]
[1746778614982,1.9186,166.59,166.53,6.0038]
[1746778615177,109.6289,166.55,166.53,6.0038]
[1746778615487,109.6289,166.54,166.51,6.0047]
[1746778615687,81.6936,166.52,166.51,6.0047]
[1746778615883,27.9353,166.54,166.48,45.1904]
[1746778616084,109.6289,166.53,166.5,6.0051]
[1746778616288,109.6289,166.51,166.48,43.14]
[1746778616580,1.9186,166.59,166.48,43.14]
[1746778616581,1.9463,166.58,166.48,43.14]
[1746778616787,81.6936,166.49,166.48,43.14]
[1746778618081,109.6289,166.49,166.45,519.28]
[1746778618289,109.6289,166.46,166.42,42.72]
[1746778618678,81.6936,166.46,166.42,42.72]
[1746778618879,109.6289,166.45,166.42,42.72]
[1746778619386,109.6289,166.43,166.4,42.7]
[1746778619580,81.6936,166.42,166.4,42.7]
[1746778619787,109.6289,166.42,166.4,42.7]
[1746778619987,109.6289,166.41,166.4,42.7]
[1746778620487,109.6289,166.41,166.37,519.14]
[1746778620688,109.6289,166.39,166.35,42.7]
[1746778620890,81.6936,166.36,166.32,42.7]
[1746778621082,109.6289,166.36,166.32,42.7]
[1746778621289,81.6936,166.34,166.32,42.7]
[1746778621491,109.6289,166.34,166.32,42.7]
[1746778621688,3.9188,166.41,166.32,42.7]
[1746778621889,109.6289,166.34,166.32,42.7]
[1746778622284,6.0103,166.36,166.32,42.7]
[1746778622485,81.6936,166.33,166.32,42.7]
[1746778622885,81.6936,166.33,166.29,519.08]
[1746778622886,109.6289,166.33,166.29,519.08]
[1746778623092,109.6289,166.31,166.29,519.08]
[1746778623487,42.64,166.36,166.29,519.08]
[1746778623693,152.2689,166.36,166.29,519.08]
[1746778623993,46.5588,166.41,166.29,519.08]
[1746778624196,109.6289,166.35,166.29,561.72]
[1746778624386,81.6936,166.34,166.29,561.72]
[1746778624583,81.6936,166.34,166.29,519.08]
[1746778624782,46.5588,166.41,166.29,519.08]
[1746778624989,109.6289,166.32,166.29,520.08]
[1746778625293,109.6289,166.32,166.29,526.0924]
[1746778625485,6.0107,166.35,166.29,520.08]
[1746778625690,109.6289,166.32,166.29,520.08]
[1746778625992,109.6289,166.33,166.29,520.08]
[1746778626497,109.6289,166.33,166.32,6.0114]
[1746778626498,27.9353,166.33,166.32,6.0114]
[1746778626795,46.5588,166.41,166.29,520.08]
[1746778626991,109.6289,166.36,166.29,520.08]
[1746778627195,109.6289,166.37,166.36,6.0101]
[1746778627394,81.6936,166.37,166.36,6.0101]
[1746778627594,44.5471,166.41,166.33,42.72]
[1746778627595,1.9471,166.41,166.33,42.72]
[1746778627797,109.6289,166.36,166.33,42.72]
[1746778628094,27.9353,166.35,166.33,42.72]
[1746778628294,1.9471,166.41,166.33,42.72]
[1746778628593,109.6289,166.37,166.3,1.965]
[1746778628797,109.6289,166.33,166.29,562.8]
[1746778628999,27.9353,166.32,166.29,562.8]
[1746778629294,109.6289,166.32,166.29,562.8]
[1746778629501,27.9353,166.31,166.29,562.8]
[1746778629701,27.9353,166.3,166.29,43.72]
[1746778630695,27.9353,166.3,166.29,49.7326]
[1746778630898,1.8955,166.36,166.29,43.72]
[1746778631101,27.9353,166.31,166.29,43.72]
[1746778631400,109.6289,166.33,166.29,43.72]
[1746778631600,27.9353,166.34,166.29,43.72]
[1746778631795,27.9353,166.36,166.29,43.72]
[1746778631994,109.6289,166.38,166.3,1.9309]
[1746778632193,27.9353,166.39,166.3,1.9309]
[1746778632394,44.4681,166.47,166.32,16.87860066]
[1746778632598,109.6289,166.42,166.32,16.87860066]
[1746778632801,27.9353,166.42,166.41,6.0083]
[1746778633000,44.4681,166.47,166.38,42.74]
[1746778633200,27.9353,166.44,166.38,42.74]
[1746778633400,27.9353,166.44,166.43,6.0076]
[1746778633608,1.9634,166.48,166.38,42.74]
[1746778633906,81.6936,166.47,166.39,1.9309]
[1746778634107,109.6289,166.48,166.39,3.9333]
[1746778634606,87.294,166.53,166.47,6.0058]
[1746778634803,109.6289,166.48,166.47,6.0058]
[1746778635107,27.9353,166.48,166.45,6.0065]
[1746778635299,27.9353,166.48,166.44,42.74]
[1746778635497,109.6289,166.46,166.4,1.9439]
[1746778635699,109.6289,166.45,166.4,42.74]
[1746778635999,87.294,166.53,166.4,42.74]
[1746778636203,109.6289,166.44,166.4,42.74]
[1746778636508,27.9353,166.43,166.4,42.74]
[1746778636703,87.294,166.53,166.28,12.026]
[1746778636704,109.6289,166.41,166.28,12.026]
[1746778636907,27.9353,166.39,166.32,42.72]
[1746778637108,81.6936,166.4,166.32,42.72]
[1746778637410,27.9353,166.39,166.32,42.72]
[1746778637601,109.6289,166.4,166.32,42.72]
[1746778637802,27.9353,166.39,166.32,42.72]
[1746778638110,1.8877,166.46,166.32,42.72]
[1746778638301,109.6289,166.41,166.32,42.72]
[1746778638502,109.6289,166.39,166.32,42.72]
[1746778639114,1.8877,166.46,166.32,42.72]
[1746778639315,109.6289,166.39,166.32,42.72]
[1746778639515,109.6289,166.36,166.34,6.0106]
[1746778639814,27.9353,166.35,166.32,42.72]
[1746778640214,6.0094,166.38,166.33,6.0109]
[1746778640410,27.9353,166.34,166.32,42.72]
[1746778640712,109.6289,166.34,166.32,42.72]
[1746778641013,42.4,166.41,166.32,42.72]
[1746778641209,109.6289,166.38,166.32,42.72]
[1746778641406,109.6289,166.39,166.37,6.0097]
[1746778641817,109.6289,166.39,166.36,6.01]
[1746778642515,109.6289,166.38,166.36,6.01]
[1746778642713,109.6289,166.37,166.32,42.72]
[1746778643015,109.6289,166.36,166.32,42.72]
[1746778643217,109.6289,166.36,166.33,6.0111]
[1746778643412,6.0091,166.39,166.33,6.0111]
[1746778643614,109.6289,166.37,166.32,42.72]
[1746778644015,27.9353,166.37,166.32,42.72]
[1746778644215,42.4,166.41,166.36,6.0099]
[1746778644411,3.9444,166.44,166.32,42.72]
[1746778644615,1.9946,166.44,166.32,42.72]
[1746778644814,357.0,166.48,166.42,6.0076]
[1746778645019,81.6936,166.44,166.42,6.0076]
[1746778645212,109.6289,166.43,166.41,6.008]
[1746778645617,109.6289,166.43,166.4,42.72]
[1746778645818,109.6289,166.43,166.41,6.0081]
[1746778646115,42.34,166.5,166.4,42.72]
[1746778646419,109.6289,166.46,166.4,42.72]
[1746778646821,44.2062,166.51,166.4,42.72]
[1746778647121,109.6289,166.48,166.46,6.0062]
[1746778647318,27.9353,166.45,166.4,42.72]
[1746778647621,109.6289,166.48,166.4,42.72]
[1746778647920,81.6936,166.48,166.4,42.72]
[1746778648122,81.6936,166.47,166.4,42.72]
[1746778648316,81.6936,166.45,166.4,42.72]
[1746778648623,81.6936,166.44,166.4,42.72]
[1746778648824,109.6289,166.44,166.4,42.72]
[1746778649422,109.6289,166.44,166.41,6.0082]
[1746778649627,109.6289,166.44,166.4,42.72]
[1746778650622,109.6289,166.44,166.43,6.0076]
[1746778651423,16.87860066,166.6,166.43,519.22]
[1746778651728,86.8609,166.54,166.44,42.22]
[1746778651926,86.8609,166.53,166.46,6.0062]
[1746778652226,86.8609,166.53,166.47,42.26]
[1746778652922,8.0251,166.58,166.47,42.26]
[1746778653225,86.8609,166.53,166.47,42.26]
[1746778653425,2.0227,166.58,166.47,42.26]
[1746778653624,86.8609,166.53,166.5,6.005]
[1746778653825,86.8609,166.53,166.47,42.26]
[1746778654025,86.8609,166.52,166.47,42.26]
[1746778654222,86.8609,166.5,166.43,519.22]
[1746778654429,86.8609,166.51,166.44,84.44]
[1746778654628,86.8609,166.54,166.44,101.31860066]
[1746778654826,86.8609,166.54,166.52,6.0042]
[1746778655025,2.0227,166.58,166.52,6.0042]
[1746778655221,2.0227,166.58,166.5,42.26]
[1746778655222,86.8609,166.55,166.5,84.42]
[1746778655423,86.8609,166.56,166.5,84.42]
[1746778656036,86.8609,166.56,166.53,6.0037]
[1746778656330,86.8609,166.56,166.5,84.42]
[1746778658129,3.9612,166.61,166.5,84.42]
[1746778658334,86.8609,166.57,166.5,84.42]
[1746778658731,92.8635,166.57,166.44,28.89270066]
[1746778659027,86.8609,166.54,166.45,84.36]
[1746778659235,86.8609,166.54,166.51,6.0044]
[1746778659536,86.8609,166.54,166.51,42.26]
[1746778659736,86.8609,166.54,166.52,6.0041]
[1746778660040,43.9662,166.63,166.52,42.08]
[1746778660041,1.8662,166.63,166.52,42.08]
[1746778660229,86.8609,166.58,166.56,6.0029]
[1746778660430,86.8609,166.58,166.57,42.26]
[1746778660625,1.8662,166.63,166.57,42.26]
[1746778660937,86.8609,166.58,166.57,48.2625]
[1746778661131,86.8609,166.58,166.53,519.02]
[1746778661339,86.8609,166.56,166.54,42.24]
[1746778661631,86.8609,166.57,166.54,42.24]
[1746778661837,86.8609,166.56,166.54,42.24]
[1746778662145,68.252,166.56,166.54,42.24]
[1746778662336,86.8609,166.56,166.54,42.24]
[1746778662935,1.8662,166.63,166.54,42.24]
[1746778663134,86.8609,166.58,166.54,42.24]
[1746778663537,18.6089,166.58,166.57,6.0025]
[1746778664335,86.8609,166.58,166.57,6.0025]
[1746778664938,86.8609,166.58,166.53,519.02]
[1746778665138,86.8609,166.56,166.54,42.24]
[1746778665538,1.8662,166.63,166.54,42.24]
[1746778665738,86.8609,166.56,166.54,42.24]
[1746778665936,86.8609,166.55,166.54,42.24]
[1746778666139,86.8609,166.55,166.49,42.24]
[1746778666438,86.8609,166.52,166.49,42.24]
[1746778666738,86.8609,166.51,166.49,42.24]
[1746778666939,86.8609,166.5,166.49,42.24]
[1746778667529,41.98,166.58,166.49,42.24]
[1746778667733,86.8609,166.53,166.49,42.24]
[1746778667929,86.8609,166.54,166.49,42.24]
[1746778668133,86.8609,166.54,166.52,6.0042]
[1746778668333,6.0019,166.59,166.49,42.24]
[1746778668539,86.8609,166.52,166.49,42.24]
[1746778668742,86.8609,166.5,166.49,42.24]
[1746778670243,86.8609,166.5,166.49,48.2454]
[1746778671644,86.8609,166.5,166.49,42.24]
[1746778672046,86.8609,166.5,166.44,561.12]
[1746778672342,86.8609,166.47,166.44,561.12]
[1746778672643,86.8609,166.48,166.47,6.0061]
[1746778673033,49.8783,166.54,166.44,561.12]
[1746778673232,86.8609,166.48,166.44,561.12]
[1746778673846,43.8746,166.54,166.44,561.12]
[1746778674147,86.8609,166.5,166.44,561.12]
[1746778674345,86.8609,166.5,166.49,6.0052]
[1746778675548,86.8609,166.5,166.48,6.0056]
[1746778675748,86.8609,166.48,166.44,561.12]
[1746778676749,86.8609,166.48,166.47,6.0061]
[1746778676943,86.8609,166.48,166.44,561.12]
[1746778676944,1.9346,166.54,166.44,561.12]
[1746778677249,86.8609,166.51,166.5,6.0049]
[1746778677443,86.8609,166.5,166.44,561.12]
[1746778677645,86.8609,166.47,166.44,561.12]
[1746778677847,68.252,166.47,166.44,561.12]
[1746778678044,68.252,166.46,166.44,561.12]
[1746778678244,86.8609,166.46,166.44,561.12]
[1746778678440,86.8609,166.45,166.44,42.24]
[1746778678646,86.8609,166.45,166.4,41.88]
[1746778678947,86.8609,166.43,166.4,41.88]
[1746778679149,86.8609,166.44,166.4,41.88]
[1746778679540,18.6089,166.44,166.4,41.88]
[1746778679747,86.8609,166.42,166.4,41.88]
[1746778679938,18.6089,166.44,166.4,41.88]
[1746778680249,86.8609,166.45,166.44,6.0072]
[1746778680646,41.86,166.51,166.4,41.88]
[1746778680844,86.8609,166.45,166.4,41.88]
[1746778681049,86.8609,166.49,166.4,100.61860066]
[1746778681248,1.9346,166.54,166.48,6.0055]
[1746778681445,86.8609,166.51,166.46,41.88]
[1746778681646,1.9346,166.54,166.47,41.88]
[1746778681847,86.8609,166.5,166.47,41.88]
[1746778682146,68.252,166.52,166.47,41.88]
[1746778682444,86.8609,166.53,166.47,83.72]
[1746778682754,1.9536,166.56,166.47,602.7]
[1746778682963,86.8609,166.55,166.47,602.7]
[1746778683253,86.8609,166.56,166.47,602.7]
[1746778683450,2.0504,166.59,166.55,6.0032]
[1746778683649,86.8609,166.56,166.53,41.88]
[1746778683955,86.8609,166.56,166.54,6.0033]
[1746778684151,18.6089,166.56,166.53,41.88]
[1746778684551,18.6089,166.56,166.54,6.0036]
[1746778684760,86.8609,166.55,166.47,518.98]
[1746778684942,86.8609,166.52,166.47,518.98]
[1746778685253,86.8609,166.49,166.47,518.98]
[1746778685455,86.8609,166.51,166.47,518.98]
[1746778685649,86.8609,166.53,166.47,518.98]
[1746778685844,86.8609,166.54,166.47,518.98]
[1746778686149,86.8609,166.51,166.48,41.88]
[1746778686347,86.8609,166.5,166.48,41.88]
[1746778686547,86.8609,166.5,166.49,6.0054]
[1746778686848,2.0504,166.59,166.48,41.88]
[1746778687153,68.252,166.55,166.53,7.0037]
[1746778687357,2.0504,166.59,166.53,1.0]
[1746778687358,18.6089,166.54,166.53,1.0]
[1746778687551,86.8609,166.54,166.53,1.0]
[1746778687943,86.8609,166.54,166.48,41.88]
[1746778688160,86.8609,166.51,166.49,6.0051]
[1746778688343,68.252,166.51,166.48,41.88]
[1746778688648,86.8609,166.5,166.48,41.88]
[1746778688854,86.8609,166.49,166.41,5.8944]
[1746778689051,86.8609,166.47,166.42,41.88]
[1746778689347,86.8609,166.45,166.42,41.88]
[1746778689554,86.8609,166.44,166.42,41.88]
[1746778690053,1.9307,166.48,166.42,41.88]
[1746778690252,86.8609,166.46,166.42,41.88]
[1746778690448,68.252,166.45,166.42,41.88]
[1746778690753,86.8609,166.44,166.42,41.88]
[1746778691353,1.9307,166.48,166.42,41.88]
[1746778691553,86.8609,166.44,166.42,47.8878]
[1746778691754,86.8609,166.43,166.42,41.88]
[1746778692253,1.9307,166.48,166.42,41.88]
[1746778692450,86.8609,166.44,166.42,41.88]
[1746778692654,86.8609,166.44,166.42,47.8879]
[1746778693161,86.8609,166.44,166.43,6.0076]
[1746778693461,1.9307,166.48,166.42,41.88]
[1746778693655,86.8609,166.45,166.42,41.88]
[1746778694053,86.8609,166.45,166.43,6.0076]
[1746778694351,1.9307,166.48,166.42,41.88]
[1746778694549,70.1827,166.48,166.46,6.0065]
[1746778694751,86.8609,166.48,166.46,6.0065]
[1746778696462,86.8609,166.47,166.42,41.88]
[1746778696655,86.8609,166.45,166.42,41.88]
[1746778696850,43.804,166.51,166.42,41.88]
[1746778697058,86.8609,166.44,166.42,41.88]
[1746778697462,43.804,166.51,166.42,41.88]
[1746778697764,86.8609,166.45,166.42,41.88]
[1746778697963,86.8609,166.47,166.45,6.0067]
[1746778698162,86.8609,166.48,166.42,41.88]
[1746778698960,70.296,166.51,166.42,41.88]
[1746778699163,2.044,166.51,166.43,41.74]
[1746778699464,47.743,166.56,166.43,41.74]
[1746778699665,86.8609,166.53,166.43,43.6251]
[1746778700067,86.8609,166.53,166.48,6.0054]
[1746778700266,86.8609,166.53,166.49,41.88]
[1746778700470,4.0291,166.59,166.49,41.88]
[1746778700662,86.8609,166.53,166.49,41.88]
[1746778701063,86.8609,166.5,166.49,41.88]
[1746778703269,86.8609,166.5,166.43,83.62]
[1746778703469,86.8609,166.47,166.43,41.88]
[1746778703669,86.8609,166.47,166.44,6.0069]
[1746778703872,86.8609,166.47,166.43,41.88]
[1746778704072,2.0391,166.52,166.43,41.88]
[1746778704371,86.8609,166.48,166.43,41.88]
[1746778704676,86.8609,166.48,166.44,6.0072]
[1746778704976,2.0391,166.52,166.44,6.0072]
[1746778705275,86.8609,166.48,166.44,6.0072]
[1746778705875,86.8609,166.47,166.43,41.88]
[1746778706174,86.8609,166.46,166.43,41.88]
[1746778706876,2.0391,166.52,166.43,41.88]
[1746778707077,86.8609,166.5,166.43,41.88]
[1746778707377,86.8609,166.48,166.43,41.88]
[1746778707576,86.8609,166.46,166.43,41.88]
[1746778707971,2.0391,166.52,166.43,41.88]
[1746778708172,86.8609,166.5,166.43,41.88]
[1746778708576,86.8609,166.5,166.45,6.0068]
[1746778708776,86.8609,166.5,166.43,41.88]
[1746778708972,68.252,166.47,166.43,41.88]
[1746778709279,68.252,166.48,166.43,41.88]
[1746778709475,68.252,166.5,166.43,41.88]
[1746778709875,86.8609,166.48,166.43,41.88]
[1746778710174,86.8609,166.45,166.43,41.88]
[1746778710579,2.0391,166.52,166.43,41.88]
[1746778710785,68.252,166.45,166.43,41.88]
[1746778710980,86.8609,166.46,166.43,41.88]
[1746778711181,61.8609,166.46,166.43,41.88]
[1746778712174,2.0391,166.52,166.43,41.88]
[1746778712378,61.8609,166.48,166.43,41.88]
[1746778712783,2.0391,166.52,166.49,6.0053]
[1746778713080,357.0,166.56,166.44,2.0083]
[1746778713282,61.8609,166.52,166.44,2.0083]
[1746778713474,61.8609,166.52,166.45,2.0008]
[1746778713678,2.0594,166.56,166.45,2.0008]
[1746778713877,61.8609,166.52,166.5,6.0049]
[1746778714081,61.8609,166.53,166.49,41.68]
[1746778714377,61.8609,166.54,166.52,6.0041]
[1746778714581,61.8609,166.54,166.49,41.68]
[1746778714781,61.8609,166.53,166.49,41.68]
[1746778715087,61.8609,166.53,166.47,41.68]
[1746778715088,61.8609,166.52,166.48,41.68]
[1746778715382,61.8609,166.53,166.48,41.68]
[1746778715580,61.8609,166.53,166.5,6.0048]
[1746778715780,6.0028,166.57,166.48,41.68]
[1746778715979,61.8609,166.53,166.48,41.68]
[1746778716377,61.8609,166.51,166.48,41.68]
[1746778716580,61.8609,166.5,166.48,41.68]
[1746778716887,61.8609,166.51,166.49,6.0054]
[1746778717085,61.8609,166.51,166.48,41.68]
[1746778717280,6.003,166.56,166.48,41.68]
[1746778717484,61.8609,166.52,166.48,41.68]
[1746778717986,41.68,166.58,166.48,41.68]
[1746778718186,61.8609,166.52,166.5,6.0048]
[1746778718584,41.68,166.58,166.48,41.68]
[1746778718886,61.8609,166.51,166.48,41.68]
[1746778719085,52.06840891,166.58,166.48,41.68]
[1746778719284,61.8609,166.49,166.48,41.68]
[1746778719787,61.8609,166.49,166.43,41.68]
[1746778720086,61.8609,166.47,166.43,41.68]
[1746778720285,61.8609,166.47,166.44,6.0071]
[1746778720582,61.8609,166.47,166.43,41.68]
[1746778720788,61.8609,166.46,166.44,6.0072]
[1746778720980,61.8609,166.46,166.43,41.68]
[1746778721176,3.9539,166.51,166.43,41.68]
[1746778721376,61.8609,166.46,166.43,41.68]
[1746778721582,3.9539,166.51,166.43,41.68]
[1746778721790,61.8609,166.47,166.43,41.68]
[1746778722087,398.68,166.57,166.43,41.68]
[1746778722282,61.8609,166.54,166.44,10.38840891]
[1746778722881,61.8609,166.53,166.43,41.68]
[1746778723084,61.8609,166.51,166.44,83.32]
[1746778723289,3.871,166.58,166.44,83.32]
[1746778723489,61.8609,166.57,166.46,10.38840891]
[1746778723689,61.8609,166.57,166.48,16.86780446]
[1746778723884,61.8609,166.57,166.49,3.9317]
[1746778724092,357.0,166.62,166.5,83.3]
[1746778724388,61.8609,166.58,166.54,6.0034]
[1746778724582,61.8609,166.57,166.5,83.3]
[1746778725089,1.9369,166.63,166.5,83.3]
[1746778725385,61.8609,166.58,166.5,85.1851]
[1746778725986,61.8609,166.58,166.55,6.0029]
[1746778726190,61.8609,166.58,166.5,85.1851]
[1746778726691,61.8609,166.58,166.55,6.0032]
[1746778727286,61.8609,166.58,166.54,6.0035]
[1746778727688,61.8609,166.58,166.5,85.1851]
[1746778728292,61.8609,166.58,166.56,6.0029]
[1746778728490,61.8609,166.58,166.56,47.6829]
[1746778728690,61.8609,166.58,166.56,41.68]
[1746778728893,61.8609,166.58,166.56,47.6828]
[1746778729093,61.8609,166.57,166.56,41.68]
[1746778729496,61.8609,166.57,166.56,47.6829]
[1746778729692,1.9369,166.63,166.56,41.68]
[1746778729890,61.8609,166.58,166.56,41.68]
[1746778730295,1.9369,166.63,166.56,41.68]
[1746778730594,61.8609,166.58,166.56,41.68]
[1746778730791,61.8609,166.58,166.57,6.0023]
[1746778730988,357.0,166.66,166.56,83.26]
[1746778731194,61.8609,166.64,166.56,83.26]
[1746778731495,5.9492,166.69,166.57,1.9704]
[1746778731792,61.8609,166.6,166.59,6.0018]
[1746778731993,61.8609,166.6,166.58,41.66]
[1746778732195,5.9492,166.69,166.58,41.66]
[1746778732391,61.8609,166.59,166.51,1.9704]
[1746778732587,61.8609,166.57,166.51,1.9704]
[1746778732786,61.8609,166.58,166.52,83.24]
[1746778732994,61.8609,166.58,166.56,6.0026]
[1746778733192,41.58,166.66,166.52,83.24]
[1746778733393,61.8609,166.58,166.52,83.24]
[1746778733590,6.0012,166.61,166.55,6.0032]
[1746778733792,61.8609,166.58,166.52,83.24]
[1746778733991,61.8609,166.6,166.52,100.10780446]
[1746778734391,172.33934749,166.67,166.52,100.10780446]
[1746778734592,61.8609,166.61,166.52,100.10780446]
[1746778735303,61.8609,166.58,166.51,1.9704]
[1746778735493,61.8609,166.58,166.53,41.66]
[1746778735798,61.8609,166.54,166.49,518.96]
[1746778736000,61.8609,166.54,166.5,41.66]
[1746778736199,61.8609,166.53,166.51,6.0046]
[1746778736600,5.6427,166.6,166.5,41.66]
[1746778736796,61.8609,166.51,166.49,518.96]
[1746778737196,6.0028,166.57,166.51,6.0045]
[1746778737398,5.6427,166.6,166.51,6.0045]
[1746778737399,61.8609,166.54,166.51,6.0045]
[1746778737599,61.8609,166.54,166.49,518.96]
[1746778738200,61.8609,166.52,166.49,518.96]
[1746778738600,5.6427,166.6,166.49,518.96]
[1746778738894,61.8609,166.5,166.48,41.66]
[1746778739096,61.8609,166.49,166.42,41.54]
[1746778739297,41.56,166.54,166.42,41.54]
[1746778739495,61.8609,166.51,166.42,58.40780446]
[1746778740094,61.8609,166.51,166.47,6.0059]
[1746778740295,41.56,166.54,166.48,41.54]
[1746778740604,61.8609,166.51,166.47,41.54]
[1746778740796,61.8609,166.5,166.47,41.54]
[1746778741598,61.8609,166.48,166.47,41.54]
[1746778742303,67.8667,166.48,166.47,41.54]
[1746778742502,67.8667,166.48,166.42,41.54]
[1746778742702,61.8609,166.47,166.42,41.54]
[1746778743102,61.8609,166.46,166.42,41.54]
[1746778743894,61.8609,166.44,166.42,41.54]
[1746778744194,61.8609,166.43,166.42,41.54]
[1746778745304,358.916,166.53,166.42,41.54]
[1746778745606,61.8609,166.47,166.42,41.54]
[1746778746101,43.593,166.52,166.42,41.54]
[1746778746302,61.8609,166.49,166.42,83.08]
[1746778746704,43.593,166.52,166.46,6.0065]
[1746778746903,61.8609,166.49,166.42,83.08]
[1746778747805,3.9249,166.52,166.42,83.08]
[1746778748006,61.8609,166.5,166.42,86.9601]
[1746778748206,63.9139,166.52,166.42,86.9601]
[1746778748397,63.9139,166.52,166.43,1.9765]
[1746778748597,63.9139,166.52,166.48,6.0056]
[1746778748801,61.8609,166.52,166.48,41.56]
[1746778749002,3.7785,166.57,166.48,41.56]
[1746778749208,61.8609,166.53,166.5,6.0049]
[1746778749707,61.8609,166.53,166.48,41.56]
[1746778749908,3.7785,166.57,166.48,41.56]
[1746778750109,61.8609,166.53,166.48,41.56]
[1746778750311,3.7785,166.57,166.48,41.56]
[1746778750507,61.8609,166.53,166.48,41.56]
[1746778750708,61.8609,166.51,166.48,41.56]
[1746778751508,61.8609,166.49,166.48,41.56]
[1746778751708,61.8609,166.49,166.43,41.56]
[1746778751911,61.8609,166.48,166.43,41.56]
[1746778752109,61.8609,166.5,166.43,41.56]
[1746778752311,61.8609,166.48,166.43,41.56]
[1746778752514,41.52,166.55,166.43,41.56]
[1746778752716,61.8609,166.46,166.43,41.56]
[1746778753109,61.8609,166.46,166.43,47.5674]
[1746778753607,61.8609,166.44,166.42,1.0]
[1746778753912,61.8609,166.43,166.42,1.0]
[1746778754712,3.9643,166.48,166.42,1.0]
[1746778754907,61.8609,166.47,166.42,1.0]
[1746778755110,61.8609,166.48,166.42,1.0]
[1746778755522,41.5,166.51,166.43,10.39595796]
[1746778755717,103.3609,166.51,166.44,41.56]
[1746778755915,2.0342,166.55,166.49,6.0052]
[1746778756110,61.8609,166.51,166.44,41.56]
[1746778756318,61.8609,166.48,166.44,41.56]
[1746778756710,61.8609,166.47,166.44,41.56]
[1746778756913,61.8609,166.45,166.42,1.0]
[1746778757116,61.8609,166.44,166.42,1.0]
[1746778757421,61.8609,166.43,166.42,1.0]
[1746778757620,61.8609,166.44,166.42,1.0]
[1746778758117,61.8609,166.44,166.42,7.0079]
[1746778758322,41.5,166.5,166.42,1.0]